[Event "Championnat d'Europe de Blitz"]
[Date "2024.12.09"]
[White "Fedoseev, Vladimir"]
[Black "Jobava, Baadur"]
[WhiteElo "2709"]
[BlackElo "2578"]
[Round "9.2"]
[Result "1/2-1/2"]
[TimeControl "180+2"]

1. d4 {[%clk 00:03:03]} d5 {[%emt 00:00:06]} 2. c4 {[%clk 00:03:02]} c6 {[%clk
00:03:03]} 3. Nf3 {[%emt 00:00:02] [%clk 00:03:01]} Nf6 {[%clk 00:03:04]} 4. e3
{[%emt 00:00:01] [%clk 00:03:02]} g6 {[%emt 00:00:02] [%clk 00:03:05]} 5. Nc3
{[%emt 00:00:02] [%clk 00:03:01]} Bg7 {[%clk 00:03:07]} 6. Be2 {[%emt 00:00:01]
[%clk 00:03:02]} O-O {[%emt 00:00:02] [%clk 00:03:07]} 7. O-O {[%emt 00:00:01]
[%clk 00:03:02]} dxc4 {[%emt 00:00:03] [%clk 00:03:06]} 8. Bxc4 {[%emt 00:00:02]
[%clk 00:03:02]} Bg4 {[%emt 00:00:02] [%clk 00:03:07]} 9. Be2 {[%emt 00:00:29]
[%clk 00:02:35]} Nbd7 {[%emt 00:00:05] [%clk 00:03:04]} 10. e4 {[%emt 00:00:01]
[%clk 00:02:35]} Qb6 {[%emt 00:01:30] [%clk 00:01:37]} 11. Rb1 {[%emt 00:00:01]
[%clk 00:02:36]} Rfd8 {[%emt 00:00:35] [%clk 00:01:04]} 12. Be3 {[%emt 00:00:02]
[%clk 00:02:36]} Nf8 {[%emt 00:00:15] [%clk 00:00:51]} 13. Qc2 {[%emt 00:00:22]
[%clk 00:02:16]} Bxf3 {[%emt 00:00:08] [%clk 00:00:45]} 14. Bxf3 {[%emt
00:00:01] [%clk 00:02:16]} Ne6 {[%clk 00:00:47]} 15. Ne2 {[%emt 00:00:14] [%clk
00:02:04]} Qa6 {[%emt 00:00:10] [%clk 00:00:39]} 16. b4 {[%emt 00:00:11] [%clk
00:01:55]} h5 {[%emt 00:00:02] [%clk 00:00:39]} 17. h3 {[%emt 00:00:19] [%clk
00:01:38]} Nh7 {[%emt 00:00:01] [%clk 00:00:39]} 18. Rfd1 {[%emt 00:01:03] [%clk
00:00:38]} Nhg5 {[%emt 00:00:01] [%clk 00:00:40]} 19. a4 {[%emt 00:00:07] [%clk
00:00:33]} Nxf3+ {[%emt 00:00:02] [%clk 00:00:40]} 20. gxf3 {[%emt 00:00:01]
[%clk 00:00:34]} Rac8 {[%emt 00:00:06] [%clk 00:00:36]} 21. Kg2 {[%emt 00:00:01]
[%clk 00:00:35]} b6 {[%emt 00:00:02] [%clk 00:00:36]} 22. Rd2 {[%clk 00:00:36]}
Qb7 {[%emt 00:00:01] [%clk 00:00:37]} 23. Rbd1 {[%clk 00:00:37]} Rd7 {[%emt
00:00:03] [%clk 00:00:36]} 24. Qb3 {[%emt 00:00:02] [%clk 00:00:37]} Rcd8 {[%emt
00:00:02] [%clk 00:00:36]} 25. b5 {[%emt 00:00:02] [%clk 00:00:37]} c5 {[%emt
00:00:17] [%clk 00:00:21]} 26. d5 {[%emt 00:00:09] [%clk 00:00:30]} Nc7 {[%clk
00:00:22]} 27. Nf4 {[%emt 00:00:05] [%clk 00:00:27]} Ne8 {[%emt 00:00:02] [%clk
00:00:22]} 28. Nd3 {[%emt 00:00:12] [%clk 00:00:17]} Nd6 {[%clk 00:00:23]} 29.
Qc2 {[%emt 00:00:02] [%clk 00:00:17]} a6 {[%emt 00:00:08] [%clk 00:00:17]} 30.
bxa6 {[%emt 00:00:04] [%clk 00:00:15]} Qxa6 {[%emt 00:00:01] [%clk 00:00:18]}
31. Bf4 {[%emt 00:00:03] [%clk 00:00:14]} Ra7 {[%emt 00:00:05] [%clk 00:00:15]}
32. Bxd6 {[%emt 00:00:05] [%clk 00:00:11]} exd6 {[%clk 00:00:16]} 33. Rb1 {[%emt
00:00:02] [%clk 00:00:11]} Qxa4 {[%emt 00:00:05] [%clk 00:00:14]} 34. Rxb6
{[%emt 00:00:03] [%clk 00:00:09]} c4 {[%emt 00:00:05] [%clk 00:00:11]} 35. Nb4
{[%clk 00:00:10]} c3 {[%emt 00:00:04] [%clk 00:00:09]} 36. Qxa4 {[%emt 00:00:04]
[%clk 00:00:09]} Rxa4 {[%clk 00:00:10]} 37. Rc2 {[%emt 00:00:02] [%clk
00:00:09]} Rda8 {[%emt 00:00:04] [%clk 00:00:08]} 38. f4 {[%emt 00:00:05] [%clk
00:00:06]} Bd4 {[%emt 00:00:01] [%clk 00:00:09]} 39. Rb5 {[%emt 00:00:01] [%clk
00:00:07]} Bc5 {[%emt 00:00:03] [%clk 00:00:08]} 40. Nd3 {[%emt 00:00:01] [%clk
00:00:08]} Rxe4 {[%emt 00:00:03] [%clk 00:00:07]} 41. Nxc5 {[%clk 00:00:09]}
dxc5 {[%clk 00:00:08]} 42. Rxc5 {[%emt 00:00:03] [%clk 00:00:09]} Rxf4 {[%emt
00:00:01] [%clk 00:00:09]} 43. R2xc3 {[%emt 00:00:02] [%clk 00:00:09]} Rd4
{[%emt 00:00:01] [%clk 00:00:10]} 44. R3c4 {[%emt 00:00:02] [%clk 00:00:09]}
1/2-1/2

[Site "Europe Echecs"]

[Event "Championnat d'Europe de Blitz"]
[Date "2024.12.09"]
[White "Fressinet, Laurent"]
[Black "Pichot, Alan"]
[WhiteElo "2588"]
[BlackElo "2637"]
[Round "9.3"]
[Result "1/2-1/2"]
[TimeControl "180+2"]

1. Nf3 {[%emt 00:00:01] [%clk 00:03:03]} Nf6 {[%emt 00:00:02] [%clk 00:03:02]}
2. g3 {[%emt 00:00:01] [%clk 00:03:04]} d5 {[%emt 00:00:02] [%clk 00:03:03]} 3.
Bg2 {[%clk 00:03:04]} e6 {[%emt 00:00:01] [%clk 00:03:03]} 4. d4 {[%emt
00:00:03] [%clk 00:03:04]} Be7 {[%emt 00:00:02] [%clk 00:03:04]} 5. c4 {[%emt
00:00:01] [%clk 00:03:04]} O-O {[%emt 00:00:02] [%clk 00:03:04]} 6. Qc2 {[%clk
00:03:05]} Nbd7 {[%emt 00:00:02] [%clk 00:03:04]} 7. O-O {[%emt 00:00:04] [%clk
00:03:03]} a5 {[%emt 00:00:02] [%clk 00:03:05]} 8. Rd1 {[%emt 00:00:04] [%clk
00:03:00]} dxc4 {[%emt 00:00:02] [%clk 00:03:05]} 9. Qxc4 {[%emt 00:00:05] [%clk
00:02:57]} b5 {[%emt 00:00:02] [%clk 00:03:05]} 10. Qc2 {[%emt 00:00:18] [%clk
00:02:41]} Bb7 {[%emt 00:00:02] [%clk 00:03:06]} 11. Bf4 {[%emt 00:00:03] [%clk
00:02:40]} Rc8 {[%emt 00:00:15] [%clk 00:02:53]} 12. Nc3 {[%emt 00:00:05] [%clk
00:02:36]} b4 {[%emt 00:00:32] [%clk 00:02:24]} 13. Na4 {[%emt 00:00:05] [%clk
00:02:32]} Be4 {[%emt 00:00:05] [%clk 00:02:20]} 14. Qc1 {[%emt 00:00:15] [%clk
00:02:19]} Nd5 {[%emt 00:00:13] [%clk 00:02:10]} 15. Ne5 {[%emt 00:00:25] [%clk
00:01:56]} Bxg2 {[%emt 00:00:02] [%clk 00:02:11]} 16. Kxg2 {[%emt 00:00:01]
[%clk 00:01:57]} c5 {[%emt 00:00:33] [%clk 00:01:39]} 17. Nxd7 {[%emt 00:00:24]
[%clk 00:01:35]} cxd4 {[%emt 00:00:19] [%clk 00:01:22]} 18. Ndc5 {[%emt
00:00:14] [%clk 00:01:23]} Bxc5 {[%emt 00:00:01] [%clk 00:01:23]} 19. Nxc5
{[%emt 00:00:01] [%clk 00:01:24]} Nxf4+ {[%emt 00:00:20] [%clk 00:01:05]} 20.
Qxf4 {[%emt 00:00:21] [%clk 00:01:05]} Rxc5 {[%emt 00:00:01] [%clk 00:01:06]}
21. Rxd4 {[%clk 00:01:07]} Qa8+ {[%clk 00:01:07]} 22. Qf3 {[%clk 00:01:08]} Rc2
{[%emt 00:00:02] [%clk 00:01:07]} 23. Qxa8 {[%emt 00:00:10] [%clk 00:01:00]}
Rxa8 {[%clk 00:01:08]} 24. Rad1 {[%clk 00:01:02]} Kf8 {[%emt 00:00:08] [%clk
00:01:02]} 25. R1d2 {[%emt 00:00:06] [%clk 00:00:57]} Rac8 {[%emt 00:00:07]
[%clk 00:00:58]} 1/2-1/2

[Site "Europe Echecs"]

[Event "Championnat d'Europe de Blitz"]
[Date "2024.12.09"]
[White "Sarana, Alexey"]
[Black "Ragger, Markus"]
[WhiteElo "2674"]
[BlackElo "2577"]
[Round "9.4"]
[Result "1-0"]
[TimeControl "180+2"]

1. d4 {[%emt 00:01:16] [%clk 00:03:04]} Nf6 {[%clk 00:03:03]} 2. c4 {[%clk
00:03:05]} g6 {[%clk 00:03:04]} 3. Nc3 {[%emt 00:00:02] [%clk 00:03:06]} d5
{[%clk 00:03:06]} 4. Nf3 {[%emt 00:00:01] [%clk 00:03:06]} Bg7 {[%clk 00:03:07]}
5. e3 {[%emt 00:00:01] [%clk 00:03:07]} O-O {[%emt 00:00:03] [%clk 00:03:06]} 6.
cxd5 {[%emt 00:00:02] [%clk 00:03:08]} Nxd5 {[%emt 00:00:01] [%clk 00:03:06]} 7.
Be2 {[%clk 00:03:09]} c5 {[%emt 00:00:06] [%clk 00:03:03]} 8. Qb3 {[%emt
00:00:01] [%clk 00:03:10]} Nxc3 {[%emt 00:00:15] [%clk 00:02:50]} 9. bxc3 {[%emt
00:00:02] [%clk 00:03:10]} b6 {[%emt 00:00:22] [%clk 00:02:29]} 10. O-O {[%emt
00:00:11] [%clk 00:03:01]} Bb7 {[%emt 00:00:01] [%clk 00:02:30]} 11. dxc5 {[%emt
00:00:31] [%clk 00:02:32]} Nd7 {[%emt 00:00:01] [%clk 00:02:31]} 12. Rd1 {[%emt
00:00:17] [%clk 00:02:17]} Qc7 {[%emt 00:00:14] [%clk 00:02:18]} 13. cxb6 {[%emt
00:00:01] [%clk 00:02:18]} axb6 {[%emt 00:00:03] [%clk 00:02:18]} 14. Nd4 {[%emt
00:00:01] [%clk 00:02:18]} Nc5 {[%emt 00:00:12] [%clk 00:02:08]} 15. Qb4 {[%emt
00:00:03] [%clk 00:02:17]} Ra4 {[%emt 00:00:15] [%clk 00:01:56]} 16. Qb2 {[%clk
00:02:18]} Rfa8 {[%emt 00:00:09] [%clk 00:01:50]} 17. Bd2 {[%emt 00:00:07] [%clk
00:02:13]} Ne4 {[%emt 00:00:29] [%clk 00:01:23]} 18. Be1 {[%emt 00:00:01] [%clk
00:02:14]} Nd6 {[%clk 00:01:24]} 19. Qb3 {[%emt 00:00:51] [%clk 00:01:25]} Qc5
{[%emt 00:00:14] [%clk 00:01:11]} 20. Bf1 {[%emt 00:00:11] [%clk 00:01:16]} Bd5
{[%emt 00:00:06] [%clk 00:01:08]} 21. Qb1 {[%emt 00:00:21] [%clk 00:00:56]} Bxa2
{[%emt 00:00:14] [%clk 00:00:57]} 22. Qc2 {[%emt 00:00:08] [%clk 00:00:50]} b5
{[%emt 00:00:01] [%clk 00:00:58]} 23. Qb2 {[%emt 00:00:09] [%clk 00:00:43]} Bc4
{[%emt 00:00:03] [%clk 00:00:56]} 24. Rab1 {[%emt 00:00:17] [%clk 00:00:28]}
Bxf1 {[%emt 00:00:21] [%clk 00:00:38]} 25. Kxf1 {[%emt 00:00:01] [%clk
00:00:29]} Qc4+ {[%emt 00:00:02] [%clk 00:00:38]} 26. Kg1 {[%emt 00:00:01] [%clk
00:00:30]} Ra2 {[%emt 00:00:01] [%clk 00:00:39]} 27. Qb4 {[%emt 00:00:01] [%clk
00:00:31]} Qxb4 {[%emt 00:00:25] [%clk 00:00:16]} 28. Rxb4 {[%emt 00:00:01]
[%clk 00:00:32]} Ra1 {[%emt 00:00:02] [%clk 00:00:16]} 29. Rxa1 {[%emt 00:00:02]
[%clk 00:00:32]} Rxa1 {[%emt 00:00:01] [%clk 00:00:17]} 30. Kf1 {[%clk
00:00:33]} Bxd4 {[%emt 00:00:11] [%clk 00:00:08]} 31. cxd4 {[%emt 00:00:03]
[%clk 00:00:33]} f5 {[%emt 00:00:01] [%clk 00:00:08]} 32. Rb2 {[%emt 00:00:09]
[%clk 00:00:26]} Kf7 {[%emt 00:00:01] [%clk 00:00:10]} 33. Ke2 {[%clk 00:00:27]}
Ke6 {[%emt 00:00:01] [%clk 00:00:11]} 34. Bb4 {[%emt 00:00:11] [%clk 00:00:18]}
Nc4 {[%clk 00:00:12]} 35. Rc2 {[%emt 00:00:01] [%clk 00:00:19]} Rb1 {[%emt
00:00:02] [%clk 00:00:12]} 36. Bc5 {[%emt 00:00:02] [%clk 00:00:19]} Rb2 {[%emt
00:00:02] [%clk 00:00:11]} 37. Kd3 {[%emt 00:00:06] [%clk 00:00:15]} Rxc2 {[%emt
00:00:03] [%clk 00:00:11]} 38. Kxc2 {[%clk 00:00:16]} Kd7 {[%clk 00:00:12]} 39.
Kd3 {[%emt 00:00:04] [%clk 00:00:14]} e6 {[%emt 00:00:01] [%clk 00:00:13]} 40.
f3 {[%clk 00:00:16]} Nb2+ {[%emt 00:00:07] [%clk 00:00:08]} 41. Kc3 {[%clk
00:00:16]} Nd1+ {[%emt 00:00:03] [%clk 00:00:07]} 42. Kd2 {[%emt 00:00:01] [%clk
00:00:17]} Nb2 {[%clk 00:00:08]} 43. e4 {[%emt 00:00:01] [%clk 00:00:18]} Kc6
{[%emt 00:00:01] [%clk 00:00:09]} 44. Bb4 {[%emt 00:00:02] [%clk 00:00:18]} Nc4+
{[%emt 00:00:02] [%clk 00:00:10]} 45. Kd3 {[%clk 00:00:20]} Nb2+ {[%clk
00:00:11]} 46. Ke3 {[%emt 00:00:01] [%clk 00:00:20]} g5 {[%emt 00:00:08] [%clk
00:00:05]} 47. d5+ {[%clk 00:00:21]} exd5 {[%emt 00:00:02] [%clk 00:00:05]} 48.
exf5 {[%clk 00:00:22]} Nc4+ {[%emt 00:00:03] [%clk 00:00:04]} 49. Kd4 {[%clk
00:00:24]} Nb6 {[%emt 00:00:01] [%clk 00:00:05]} 50. f6 {[%emt 00:00:02] [%clk
00:00:23]} Nd7 {[%emt 00:00:02] [%clk 00:00:05]} 51. f7 {[%emt 00:00:01] [%clk
00:00:24]} 1-0

[Site "Europe Echecs"]

[Event "Championnat d'Europe de Blitz"]
[Date "2024.12.09"]
[White "Santos Latasa, Jaime"]
[Black "Dvirnyy, Danyyil"]
[WhiteElo "2628"]
[BlackElo "2491"]
[Round "9.5"]
[Result "1-0"]
[TimeControl "180+2"]

1. Nf3 {[%clk 00:03:03]} Nf6 {[%emt 00:00:07] [%clk 00:02:57]} 2. c4 {[%emt
00:00:01] [%clk 00:03:04]} e6 {[%emt 00:00:02] [%clk 00:02:58]} 3. Nc3 {[%emt
00:00:02] [%clk 00:03:04]} d5 {[%clk 00:02:59]} 4. e3 {[%emt 00:00:01] [%clk
00:03:05]} Bd6 {[%emt 00:00:15] [%clk 00:02:46]} 5. b3 {[%emt 00:00:01] [%clk
00:03:05]} O-O {[%emt 00:00:02] [%clk 00:02:46]} 6. Bb2 {[%emt 00:00:01] [%clk
00:03:06]} Re8 {[%emt 00:00:01] [%clk 00:02:47]} 7. Nb5 {[%emt 00:00:03] [%clk
00:03:06]} Bf8 {[%clk 00:02:48]} 8. Bxf6 {[%emt 00:00:05] [%clk 00:03:03]} gxf6
{[%emt 00:00:02] [%clk 00:02:48]} 9. cxd5 {[%emt 00:00:03] [%clk 00:03:01]} c6
{[%emt 00:00:39] [%clk 00:02:12]} 10. dxc6 {[%emt 00:00:04] [%clk 00:02:59]}
Nxc6 {[%clk 00:02:13]} 11. Be2 {[%emt 00:00:03] [%clk 00:02:57]} a6 {[%emt
00:00:06] [%clk 00:02:10]} 12. Nc3 {[%emt 00:00:01] [%clk 00:02:57]} b5 {[%emt
00:00:04] [%clk 00:02:08]} 13. O-O {[%emt 00:00:04] [%clk 00:02:56]} Bb7 {[%emt
00:00:01] [%clk 00:02:09]} 14. d4 {[%emt 00:00:04] [%clk 00:02:53]} Rc8 {[%emt
00:00:01] [%clk 00:02:10]} 15. Qd3 {[%emt 00:00:33] [%clk 00:02:23]} f5 {[%emt
00:00:02] [%clk 00:02:10]} 16. a3 {[%emt 00:00:10] [%clk 00:02:15]} Bg7 {[%emt
00:00:18] [%clk 00:01:54]} 17. Rac1 {[%emt 00:00:08] [%clk 00:02:09]} e5 {[%emt
00:00:07] [%clk 00:01:49]} 18. Qxf5 {[%emt 00:00:48] [%clk 00:01:22]} exd4
{[%emt 00:00:04] [%clk 00:01:48]} 19. Ne4 {[%emt 00:00:15] [%clk 00:01:09]} h6
{[%emt 00:01:08] [%clk 00:00:41]} 20. Nc5 {[%emt 00:00:16] [%clk 00:00:55]} Ne7
{[%emt 00:00:05] [%clk 00:00:38]} 21. Nxb7 {[%emt 00:00:15] [%clk 00:00:42]}
Nxf5 {[%emt 00:00:01] [%clk 00:00:39]} 22. Nxd8 {[%emt 00:00:02] [%clk
00:00:43]} Rcxd8 {[%emt 00:00:17] [%clk 00:00:24]} 23. Bd3 {[%emt 00:00:02]
[%clk 00:00:43]} Ne7 {[%emt 00:00:10] [%clk 00:00:16]} 24. e4 {[%emt 00:00:04]
[%clk 00:00:41]} Rc8 {[%emt 00:00:02] [%clk 00:00:16]} 25. a4 {[%emt 00:00:09]
[%clk 00:00:33]} bxa4 {[%emt 00:00:10] [%clk 00:00:08]} 26. bxa4 {[%emt
00:00:01] [%clk 00:00:34]} a5 {[%emt 00:00:02] [%clk 00:00:09]} 27. Bb5 {[%emt
00:00:07] [%clk 00:00:29]} Red8 {[%clk 00:00:10]} 28. Rxc8 {[%emt 00:00:03]
[%clk 00:00:27]} Rxc8 {[%clk 00:00:12]} 29. Rd1 {[%emt 00:00:01] [%clk
00:00:28]} Ng6 {[%emt 00:00:02] [%clk 00:00:12]} 30. g3 {[%emt 00:00:01] [%clk
00:00:28]} Ne5 {[%emt 00:00:08] [%clk 00:00:07]} 31. Nxd4 {[%emt 00:00:11] [%clk
00:00:18]} Rd8 {[%emt 00:00:01] [%clk 00:00:09]} 32. Be2 {[%emt 00:00:01] [%clk
00:00:19]} Nc4 {[%emt 00:00:07] [%clk 00:00:03]} 33. Nc6 {[%emt 00:00:08] [%clk
00:00:13]} Rxd1+ {[%emt 00:00:02] [%clk 00:00:04]} 34. Bxd1 {[%clk 00:00:14]}
Nb2 {[%emt 00:00:02] [%clk 00:00:04]} 35. Bb3 {[%emt 00:00:02] [%clk 00:00:14]}
Bc3 {[%clk 00:00:05]} 36. Nd8 {[%emt 00:00:01] [%clk 00:00:15]} Kg7 {[%emt
00:00:01] [%clk 00:00:06]} 37. Nxf7 {[%emt 00:00:02] [%clk 00:00:15]} Nxa4
{[%emt 00:00:01] [%clk 00:00:07]} 38. Bxa4 {[%emt 00:00:01] [%clk 00:00:16]}
Kxf7 {[%emt 00:00:02] [%clk 00:00:07]} 39. f4 {[%emt 00:00:01] [%clk 00:00:16]}
h5 {[%emt 00:00:05] [%clk 00:00:05]} 40. Kf2 {[%clk 00:00:17]} h4 {[%emt
00:00:01] [%clk 00:00:06]} 41. gxh4 {[%emt 00:00:02] [%clk 00:00:17]} Bd2 {[%emt
00:00:02] [%clk 00:00:06]} 42. Kf3 {[%clk 00:00:18]} Kf6 {[%emt 00:00:01] [%clk
00:00:07]} 43. e5+ {[%emt 00:00:02] [%clk 00:00:18]} Kg7 {[%clk 00:00:08]} 44.
f5 {[%emt 00:00:02] [%clk 00:00:18]} Bc3 {[%clk 00:00:09]} 45. Kf4 {[%emt
00:00:02] [%clk 00:00:18]} Bb4 {[%emt 00:00:01] [%clk 00:00:10]} 46. f6+ {[%emt
00:00:02] [%clk 00:00:17]} Kg6 {[%emt 00:00:01] [%clk 00:00:12]} 47. Bc2+ {[%emt
00:00:01] [%clk 00:00:18]} Kh6 {[%emt 00:00:02] [%clk 00:00:12]} 48. Ke4 {[%emt
00:00:05]} 1-0

[Site "Europe Echecs"]

[Event "Championnat d'Europe de Blitz"]
[Date "2024.12.09"]
[White "Pantsulaia, Levan"]
[Black "Gavrilescu, David"]
[WhiteElo "2522"]
[BlackElo "2549"]
[Round "9.6"]
[Result "1-0"]
[TimeControl "180+2"]

1. Nf3 {[%emt 00:12:02] [%clk 00:03:03]} d5 {[%emt 00:00:01] [%clk 00:03:03]} 2.
c4 {[%emt 00:00:01] [%clk 00:03:04]} e6 {[%emt 00:00:02] [%clk 00:03:04]} 3. g3
{[%clk 00:03:05]} Nf6 {[%emt 00:00:02] [%clk 00:03:04]} 4. Bg2 {[%clk 00:03:06]}
Be7 {[%emt 00:00:02] [%clk 00:03:05]} 5. O-O {[%emt 00:00:01] [%clk 00:03:06]}
O-O {[%emt 00:00:03] [%clk 00:03:05]} 6. b3 {[%emt 00:00:01] [%clk 00:03:07]} b6
{[%emt 00:00:01] [%clk 00:03:05]} 7. Bb2 {[%emt 00:00:02] [%clk 00:03:07]} Bb7
{[%clk 00:03:06]} 8. e3 {[%emt 00:00:02] [%clk 00:03:07]} c5 {[%emt 00:00:03]
[%clk 00:03:05]} 9. Nc3 {[%emt 00:00:01] [%clk 00:03:08]} Qc8 {[%emt 00:00:04]
[%clk 00:03:04]} 10. Qe2 {[%emt 00:00:06] [%clk 00:03:04]} Rd8 {[%emt 00:00:02]
[%clk 00:03:04]} 11. Rac1 {[%emt 00:00:01] [%clk 00:03:04]} d4 {[%emt 00:00:36]
[%clk 00:02:30]} 12. exd4 {[%emt 00:00:02] [%clk 00:03:04]} cxd4 {[%clk
00:02:31]} 13. Nb5 {[%emt 00:00:03] [%clk 00:03:03]} d3 {[%emt 00:00:02] [%clk
00:02:31]} 14. Qe3 {[%emt 00:00:21] [%clk 00:02:44]} Nc6 {[%emt 00:00:03] [%clk
00:02:29]} 15. a3 {[%emt 00:00:27] [%clk 00:02:20]} Na5 {[%emt 00:00:30] [%clk
00:02:01]} 16. b4 {[%emt 00:00:13] [%clk 00:02:09]} Nxc4 {[%emt 00:00:26] [%clk
00:01:37]} 17. Qf4 {[%clk 00:02:10]} Bd5 {[%emt 00:00:01] [%clk 00:01:38]} 18.
Ne5 {[%emt 00:00:18] [%clk 00:01:55]} Bxg2 {[%emt 00:00:43] [%clk 00:00:56]} 19.
Rxc4 {[%clk 00:01:56]} Qa6 {[%emt 00:00:02] [%clk 00:00:57]} 20. Kxg2 {[%emt
00:00:36] [%clk 00:01:21]} Qxb5 {[%emt 00:00:02] [%clk 00:00:57]} 21. Nc6 {[%emt
00:00:16] [%clk 00:01:07]} Re8 {[%emt 00:00:16] [%clk 00:00:43]} 22. Nxe7+
{[%emt 00:00:03] [%clk 00:01:07]} Rxe7 {[%clk 00:00:44]} 23. Rfc1 {[%emt
00:00:04] [%clk 00:01:04]} Qf5 {[%emt 00:00:40] [%clk 00:00:06]} 24. Qxf5 {[%emt
00:00:11] [%clk 00:00:55]} exf5 {[%emt 00:00:01] [%clk 00:00:07]} 25. Bxf6
{[%emt 00:00:07] [%clk 00:00:50]} gxf6 {[%emt 00:00:01] [%clk 00:00:08]} 26.
Rc8+ {[%emt 00:00:02] [%clk 00:00:50]} Rxc8 {[%emt 00:00:03] [%clk 00:00:07]}
27. Rxc8+ {[%clk 00:00:51]} Kg7 {[%emt 00:00:02] [%clk 00:00:08]} 28. Rd8 {[%clk
00:00:52]} Re1 {[%emt 00:00:06] [%clk 00:00:04]} 29. Kf3 {[%emt 00:00:06] [%clk
00:00:47]} a5 {[%emt 00:00:02] [%clk 00:00:04]} 30. bxa5 {[%emt 00:00:03] [%clk
00:00:46]} bxa5 {[%emt 00:00:01] [%clk 00:00:05]} 31. Rxd3 {[%emt 00:00:02]
[%clk 00:00:46]} Ra1 {[%emt 00:00:04] [%clk 00:00:04]} 32. h4 {[%emt 00:00:12]
[%clk 00:00:36]} h5 {[%emt 00:00:01] [%clk 00:00:04]} 33. Ke3 {[%emt 00:00:04]
[%clk 00:00:34]} Kg6 {[%emt 00:00:02] [%clk 00:00:04]} 34. f4 {[%clk 00:00:35]}
Kg7 {[%emt 00:00:03] [%clk 00:00:04]} 35. Kd4 {[%emt 00:00:02] [%clk 00:00:35]}
Kf8 {[%emt 00:00:02] [%clk 00:00:04]} 36. Kc4 {[%emt 00:00:04] [%clk 00:00:33]}
Rb1 {[%emt 00:00:01] [%clk 00:00:04]} 37. Rb3 {[%emt 00:00:07] [%clk 00:00:28]}
Rd1 {[%emt 00:00:01] [%clk 00:00:05]} 38. d4 {[%emt 00:00:13] [%clk 00:00:18]}
a4 {[%emt 00:00:01] [%clk 00:00:06]} 39. Re3 {[%emt 00:00:07]} Rb1 {[%clk
00:00:06]} 40. d5 {[%emt 00:00:02] [%clk 00:00:15]} Rc1+ {[%emt 00:00:03] [%clk
00:00:05]} 41. Kb5 {[%emt 00:00:01] [%clk 00:00:15]} Rd1 {[%emt 00:00:02] [%clk
00:00:05]} 42. Kc6 {[%emt 00:00:04] [%clk 00:00:14]} Rc1+ {[%clk 00:00:06]} 43.
Kd7 {[%emt 00:00:01] [%clk 00:00:15]} Rb1 {[%emt 00:00:02] [%clk 00:00:05]} 44.
Re8+ {[%emt 00:00:02] [%clk 00:00:14]} Kg7 {[%emt 00:00:02] [%clk 00:00:06]} 45.
Ra8 {[%emt 00:00:02] [%clk 00:00:14]} Rb3 {[%emt 00:00:04] [%clk 00:00:05]} 46.
Rxa4 {[%emt 00:00:01] [%clk 00:00:14]} Rxg3 {[%emt 00:00:02] [%clk 00:00:05]}
47. d6 {[%emt 00:00:01] [%clk 00:00:15]} Rh3 {[%emt 00:00:03] [%clk 00:00:04]}
48. Kc7 {[%emt 00:00:02] [%clk 00:00:15]} Rc3+ {[%emt 00:00:03] [%clk 00:00:04]}
49. Kd8 {[%clk 00:00:16]} Rh3 {[%emt 00:00:03] [%clk 00:00:03]} 50. d7 {[%emt
00:00:01] [%clk 00:00:16]} Rd3 {[%emt 00:00:02] [%clk 00:00:03]} 51. Rc4 {[%emt
00:00:01] [%clk 00:00:17]} Rxa3 {[%emt 00:00:02] [%clk 00:00:04]} 52. Kc7 {[%clk
00:00:18]} 1-0

[Site "Europe Echecs"]